bitfinex-derivatives/quotes_BTCF0:USTF0_20250315
["timestamp","ask_amount","ask_price","bid_price","bid_amount"]
[1742032519713,0.2419923,83989.0,83988.0,0.0743359]
[1742032519914,0.6027923,83989.0,83988.0,0.0743359]
[1742032520414,0.1190636,83987.0,83986.0,0.1190645]
[1742032520719,0.1190636,83987.0,83986.0,0.379365]
[1742032520918,0.1190679,83984.0,83983.0,0.0328]
[1742032521420,0.0613,83984.0,83983.0,0.01353524]
[1742032521605,0.1803679,83984.0,83983.0,0.01353524]
[1742032521810,0.1803679,83984.0,83983.0,0.07663524]
[1742032522018,0.1803679,83984.0,83983.0,0.0631]
[1742032524607,0.1803679,83984.0,83983.0,0.1821693]
[1742032535826,0.1803679,83984.0,83983.0,0.0631]
[1742032536630,0.4403679,83984.0,83983.0,0.0631]
[1742032536831,0.4403679,83984.0,83976.0,0.1503783]
[1742032536832,0.1190778,83977.0,83976.0,0.1503783]
[1742032537029,0.1190778,83977.0,83976.0,0.4303783]
[1742032537336,0.1814778,83977.0,83976.0,0.4303783]
[1742032539935,0.1814778,83977.0,83976.0,0.4914783]
[1742032542629,0.1506778,83977.0,83976.0,0.4914783]
[1742032543942,0.1838778,83977.0,83976.0,0.4914783]
[1742032548341,0.1838778,83977.0,83976.0,1.0314783]
[1742032548546,0.1838778,83977.0,83976.0,0.4914783]
[1742032549646,0.1506778,83977.0,83976.0,0.4914783]
[1742032549849,0.1834778,83977.0,83976.0,0.4914783]
[1742032553338,0.1506778,83977.0,83976.0,0.4914783]
[1742032554052,0.1833778,83977.0,83976.0,0.4914783]
[1742032556648,0.1506778,83977.0,83976.0,0.4914783]
[1742032557433,0.0316,83977.0,83976.0,0.8814783]
[1742032557647,0.0595341,83984.0,83981.0,0.059536]
[1742032557849,0.1785972,83988.0,83987.0,0.1190636]
[1742032558048,0.1785972,83988.0,83987.0,0.9390636]
[1742032558346,0.1785972,83988.0,83987.0,0.9290636]
[1742032558552,0.1785972,83988.0,83987.0,0.8790636]
[1742032558942,0.2097972,83988.0,83987.0,0.8790636]
[1742032559143,0.2097972,83988.0,83987.0,0.6590636]
[1742032559452,0.2097972,83988.0,83987.0,0.6906636]
[1742032559654,0.2097972,83988.0,83987.0,0.9606636]
[1742032560151,0.2097972,83988.0,83987.0,0.9935636]
[1742032560360,0.2097972,83988.0,83987.0,0.4535636]
[1742032560845,0.2097972,83988.0,83987.0,0.9535636]
[1742032561441,0.2097972,83988.0,83987.0,0.7135636]
[1742032561849,0.2097972,83988.0,83987.0,0.9435636]
[1742032562346,0.2097972,83988.0,83987.0,0.9235636]
[1742032562552,0.2097972,83988.0,83987.0,0.7435636]
[1742032562755,0.2097972,83988.0,83987.0,1.0035636]
[1742032563252,0.2097972,83988.0,83987.0,0.4535636]
[1742032573357,0.0312,83988.0,83987.0,0.9335636]
[1742032573753,0.1502622,83988.0,83987.0,0.9335636]
[1742032573950,0.0312,83988.0,83987.0,0.9335636]
[1742032574547,0.0631,83988.0,83987.0,0.9335636]
[1742032576065,0.0595247,83997.0,83991.0,0.1190579]
[1742032576256,0.119054,83994.0,83991.0,0.8990579]
[1742032576445,0.0319,83993.0,83991.0,0.9307579]
[1742032576954,0.0319,83993.0,83991.0,0.6607579]
[1742032577355,0.03077819,83992.0,83991.0,0.6933579]
[1742032577763,0.14983469,83992.0,83991.0,0.6933579]
[1742032577962,0.18033469,83992.0,83991.0,0.6933579]
[1742032580275,0.06127819,83992.0,83991.0,0.6933579]
[1742032580763,0.18033469,83992.0,83991.0,0.6933579]
[1742032580965,0.06127819,83992.0,83991.0,0.6933579]
[1742032581364,0.06127819,83992.0,83991.0,0.9333579]
[1742032582571,0.18033469,83992.0,83991.0,0.9333579]
[1742032584868,0.06127819,83992.0,83991.0,0.9333579]
[1742032585771,0.1785642,84003.0,84002.0,0.178562]
[1742032585972,0.2091642,84003.0,84002.0,0.408562]
[1742032586470,0.2091642,84003.0,84002.0,0.19384093]
[1742032586666,0.2091642,84003.0,84002.0,0.22644093]
[1742032590570,0.2091642,84003.0,84002.0,0.48644093]
[1742032590877,0.2406642,84003.0,84002.0,0.36740003]
[1742032591392,0.2406642,84003.0,84002.0,0.10740003]
[1742032593175,0.2406642,84003.0,84002.0,0.37740003]
[1742032595975,0.2406642,84003.0,84002.0,0.10740003]
[1742032596477,0.2406642,84003.0,84002.0,0.01527893]
[1742032596682,0.1190466,83999.0,83998.0,0.1521476]
[1742032596882,0.1190466,83999.0,83998.0,0.4021476]
[1742032597176,0.1832466,83999.0,83998.0,0.4021476]
[1742032599584,0.1832466,83999.0,83998.0,0.4167222]
[1742032602179,0.1832466,83999.0,83998.0,0.4167226]
[1742032602983,0.1832466,83999.0,83998.0,0.2645746]
[1742032603185,0.1832466,83999.0,83998.0,0.3836226]
[1742032604976,0.1832466,83999.0,83998.0,0.4142226]
[1742032606283,0.1832466,83999.0,83998.0,0.4466226]
[1742032606587,0.1832466,83999.0,83998.0,0.46018623]
[1742032607587,0.1832466,83999.0,83998.0,0.73018623]
[1742032607781,0.1832466,83999.0,83998.0,0.46018623]
[1742032608086,0.1832466,83999.0,83998.0,0.69018623]
[1742032608685,0.1190466,83999.0,83998.0,1.30098623]
[1742032609079,0.1190466,83999.0,83998.0,1.29373658]
[1742032609590,0.1190466,83999.0,83998.0,1.06373658]
[1742032609782,0.1190466,83999.0,83998.0,1.31169705]
[1742032609983,0.1509466,83999.0,83998.0,1.31176227]
[1742032610184,0.1509466,83999.0,83998.0,1.35176227]
[1742032610484,0.1509466,83999.0,83998.0,1.30176227]
[1742032610988,0.1509466,83999.0,83998.0,1.29373658]
[1742032611189,0.1509466,83999.0,83998.0,1.33373658]
[1742032611489,0.1190466,83999.0,83998.0,1.06373658]
[1742032612295,0.1190466,83999.0,83998.0,0.83373658]
[1742032613783,0.1190466,83999.0,83998.0,1.09373658]
[1742032615282,0.1823466,83999.0,83998.0,1.09373658]
[1742032616192,0.1823466,83999.0,83998.0,0.82098623]
[1742032621391,0.1823466,83999.0,83998.0,1.35098623]
[1742032621586,0.1823466,83999.0,83998.0,0.82098623]
[1742032622499,0.1823466,83999.0,83998.0,1.05098623]
[1742032623890,0.1823466,83999.0,83998.0,1.2974226]
[1742032624083,0.1823466,83999.0,83998.0,1.0374226]
[1742032624484,0.1823466,83999.0,83998.0,1.2674226]
[1742032625290,0.1823466,83999.0,83998.0,1.2801636]
[1742032626003,0.0633,83999.0,83998.0,1.2801636]
[1742032626678,0.0633,83999.0,83998.0,1.2938867]
[1742032626882,0.0633,83999.0,83998.0,1.06388662]
[1742032627183,0.0633,83999.0,83998.0,1.33388662]
[1742032627695,0.0633,83999.0,83998.0,1.06388662]
[1742032630592,0.0633,83999.0,83998.0,1.31388662]
[1742032631006,0.0633,83999.0,83998.0,1.06388662]
[1742032631997,0.0633,83999.0,83998.0,1.05017601]
[1742032633197,0.0633,83999.0,83998.0,0.82017601]
[1742032634197,0.1823466,83999.0,83998.0,0.82017601]
[1742032634383,0.2134466,83999.0,83998.0,0.82017601]
[1742032635109,0.2134466,83999.0,83998.0,0.63812801]
[1742032636595,0.2134466,83999.0,83998.0,0.75717601]
[1742032637394,0.2134466,83999.0,83998.0,0.75717195]
[1742032638988,0.2134466,83999.0,83998.0,0.75716708]
[1742032639201,0.2134466,83999.0,83998.0,0.7444226]
[1742032642503,0.4934466,83999.0,83998.0,0.23379641]
[1742032642910,0.4934466,83999.0,83998.0,0.0145746]
[1742032643105,0.119048,83998.0,83997.0,0.1190487]
[1742032643299,0.359048,83998.0,83997.0,0.1190487]
[1742032643493,0.421848,83998.0,83997.0,0.1190487]
[1742032643809,0.1190509,83996.0,83995.0,0.059526]
[1742032643995,0.7098509,83996.0,83995.0,0.059526]
[1742032644906,0.4798509,83996.0,83995.0,0.059526]
[1742032645315,0.7698509,83996.0,83995.0,0.059526]
[1742032645716,0.1190523,83995.0,83994.0,0.00017867]
[1742032646013,0.1834523,83995.0,83994.0,0.01489062]
[1742032646806,0.1834523,83995.0,83994.0,0.13394432]
[1742032647106,0.1834523,83995.0,83994.0,0.16514432]
[1742032647306,0.1834523,83995.0,83994.0,0.19514432]
[1742032659623,0.1834523,83995.0,83994.0,0.01489062]
[1742032659934,0.4534523,83995.0,83994.0,0.01489062]
[1742032665431,0.8142523,83995.0,83994.0,0.01489062]
[1742032665823,0.5442523,83995.0,83994.0,0.01489062]
[1742032666027,0.8142523,83995.0,83994.0,0.01489062]
[1742032666224,0.8042523,83995.0,83994.0,0.01489062]
[1742032666534,0.5442523,83995.0,83994.0,0.01489062]
[1742032667033,0.8242523,83995.0,83994.0,0.01489062]
[1742032667625,0.5442523,83995.0,83994.0,0.01489062]
[1742032670026,0.7942523,83995.0,83994.0,0.01489062]
[1742032675028,0.5442523,83995.0,83994.0,0.01489062]
[1742032675232,0.8142523,83995.0,83994.0,0.01489062]
[1742032676239,0.8242523,83995.0,83994.0,0.01489062]
[1742032676929,0.82547683,83995.0,83994.0,0.01489062]
[1742032678037,0.82589715,83995.0,83994.0,0.01489062]
[1742032678644,0.82631747,83995.0,83994.0,0.01489062]
[1742032680438,0.94047747,83995.0,83994.0,0.01489062]
[1742032685846,0.94047747,83995.0,83994.0,0.07599062]
[1742032686541,0.89047747,83995.0,83994.0,0.07599062]
[1742032689343,0.90047747,83995.0,83994.0,0.07599062]
[1742032690352,0.90089856,83995.0,83994.0,0.07599062]
[1742032691751,0.90089856,83995.0,83994.0,0.06127867]
[1742032692755,0.66089856,83995.0,83994.0,0.06127867]
[1742032693052,1.26169856,83995.0,83994.0,0.06127867]
[1742032693238,1.27592949,83995.0,83994.0,0.06127867]
[1742032693439,1.03592949,83995.0,83994.0,0.06127867]
[1742032693645,1.31592949,83995.0,83994.0,0.06127867]
[1742032693849,0.95555032,83995.0,83994.0,0.06127867]
[1742032694950,0.95597115,83995.0,83994.0,0.06127867]
[1742032695940,0.9384123,83995.0,83994.0,0.06127867]
[1742032696139,0.94216105,83995.0,83994.0,0.06127867]
[1742032696548,0.94232486,83995.0,83994.0,0.06127867]
[1742032702543,0.66232486,83995.0,83994.0,0.06127867]
[1742032702739,0.93232486,83995.0,83994.0,0.06127867]
[1742032703350,0.66232486,83995.0,83994.0,0.06127867]
[1742032704554,0.90232486,83995.0,83994.0,0.06127867]
[1742032707846,0.91232486,83995.0,83994.0,0.06127867]
[1742032708146,0.91232486,83995.0,83994.0,0.00017867]
[1742032709856,0.1190693,83983.0,83982.0,0.032]
[1742032710262,0.1802693,83983.0,83982.0,0.032]
[1742032710647,0.18418186,83983.0,83982.0,0.032]
[1742032710853,0.18418186,83983.0,83982.0,0.04594909]
[1742032711954,0.12298186,83983.0,83982.0,0.04594909]
[1742032713847,0.15558186,83983.0,83982.0,0.04594909]
[1742032715247,0.12298186,83983.0,83982.0,0.04594909]
[1742032715947,0.18598186,83983.0,83982.0,0.04594909]
[1742032717355,0.15488186,83983.0,83982.0,0.04594909]
[1742032717661,0.12298186,83983.0,83982.0,0.04594909]
[1742032718156,0.15438186,83983.0,83982.0,0.19501979]
[1742032718362,0.12298186,83983.0,83982.0,0.97501979]
[1742032718563,0.12298186,83983.0,83982.0,0.19501979]
[1742032718965,0.12298186,83983.0,83982.0,0.43501979]
[1742032720953,0.12298186,83983.0,83982.0,0.31594909]
[1742032722073,0.12298186,83983.0,83982.0,0.43501979]
[1742032723962,0.12298186,83983.0,83982.0,0.31594909]
[1742032727463,0.18628186,83983.0,83982.0,0.31594909]
[1742032740782,0.18628186,83983.0,83982.0,0.43501979]
[1742032740975,0.18628186,83983.0,83982.0,0.31594909]
[1742032742582,0.12298186,83983.0,83982.0,0.43501979]
[1742032743281,0.12298186,83983.0,83982.0,0.97501979]
[1742032743485,0.12298186,83983.0,83982.0,0.43501979]
[1742032743782,0.12298186,83983.0,83982.0,0.93501979]
[1742032743981,0.12298186,83983.0,83982.0,0.70501979]
[1742032744186,0.12298186,83983.0,83982.0,0.88501979]
[1742032744386,0.12298186,83983.0,83982.0,0.43501979]
[1742032744681,0.12298186,83983.0,83982.0,0.97501979]
[1742032744986,0.12298186,83983.0,83982.0,0.94501979]
[1742032745282,0.12298186,83983.0,83982.0,0.43501979]
[1742032745679,0.12298186,83983.0,83982.0,0.94501979]
[1742032746284,0.12298186,83983.0,83982.0,0.96501979]
[1742032746488,0.12298186,83983.0,83982.0,0.93501979]
[1742032747071,0.12298186,83983.0,83982.0,0.43501979]
[1742032747483,0.12298186,83983.0,83982.0,0.93501979]
[1742032747683,0.12298186,83983.0,83982.0,0.43501979]
[1742032747885,0.12298186,83983.0,83982.0,0.96501979]
[1742032749489,0.12298186,83983.0,83982.0,0.94501979]
[1742032750193,0.12298186,83983.0,83982.0,0.43501979]
[1742032750482,0.12298186,83983.0,83982.0,0.93501979]
[1742032750898,0.15598186,83983.0,83982.0,0.92501979]
[1742032751078,0.15598186,83983.0,83982.0,0.43501979]
[1742032751486,0.15598186,83983.0,83982.0,0.95501979]
[1742032751690,0.15598186,83983.0,83982.0,0.43501979]
[1742032752390,0.18808186,83983.0,83982.0,0.43501979]
[1742032752780,0.18808186,83983.0,83982.0,0.95501979]
[1742032753388,0.15598186,83983.0,83982.0,0.92501979]
[1742032759693,0.18678186,83983.0,83982.0,0.92501979]
[1742032772001,0.0595329,83986.0,83985.0,0.1190664]
[1742032772205,0.0595329,83986.0,83985.0,0.8590664]
[1742032772401,0.0595329,83986.0,83985.0,0.9544664]
[1742032772903,0.0303,83987.0,83986.0,0.119065]
[1742032773108,0.4203265,83995.0,83986.0,0.119065]
[1742032773109,0.3608,83995.0,83990.0,0.1190594]
[1742032773297,0.0301,83993.0,83990.0,0.8890594]
[1742032773491,0.1190579,83992.0,83990.0,0.9554594]
[1742032773695,0.0301,83993.0,83990.0,0.9554594]
[1742032773902,0.03027867,83991.0,83990.0,0.9554594]
[1742032774110,0.11923657,83991.0,83990.0,0.9554594]
[1742032774705,0.14933657,83991.0,83990.0,0.9554594]
[1742032775610,0.18183657,83991.0,83990.0,0.9554594]
[1742032779906,0.18183657,83991.0,83990.0,0.4454594]
[1742032781105,0.18183657,83991.0,83990.0,0.8954594]
[1742032786115,0.06277867,83991.0,83990.0,0.8954594]
[1742032786312,0.03027867,83991.0,83990.0,0.8954594]
[1742032789118,0.00017867,83991.0,83990.0,0.8954594]
[1742032790507,0.03217867,83991.0,83990.0,0.8954594]
[1742032791516,0.00017867,83991.0,83990.0,0.8954594]
[1742032791914,0.0595239,83999.0,83998.0,0.119048]
[1742032792218,0.0595239,83999.0,83998.0,0.889048]
[1742032792517,0.0595239,83999.0,83998.0,0.420648]
[1742032792720,0.0913239,83999.0,83998.0,0.940648]
[1742032792912,0.0913239,83999.0,83998.0,0.420648]
[1742032793519,0.1226239,83999.0,83998.0,0.452748]
[1742032800224,0.1226239,83999.0,83998.0,0.182748]
[1742032800414,0.1226239,83999.0,83998.0,0.3016]
[1742032800615,0.1226239,83999.0,83998.0,0.0316]
[1742032800815,0.1226239,83999.0,83998.0,0.150648]
[1742032801011,0.1190509,83996.0,83995.0,0.3608]
[1742032801212,0.1190579,83991.0,83990.0,0.1497594]
[1742032801526,0.1190579,83991.0,83990.0,0.4097594]
[1742032802109,0.1826579,83991.0,83990.0,0.4097594]
[1742032802313,0.1826579,83991.0,83990.0,0.6797594]
[1742032802514,0.1826579,83991.0,83990.0,0.4097594]
[1742032802922,0.1826579,83991.0,83990.0,0.6597594]
[1742032803123,0.1826579,83991.0,83990.0,0.6397594]
[1742032803423,0.1826579,83991.0,83990.0,0.4097594]
[1742032805521,0.5434579,83991.0,83990.0,0.26]
[1742032805725,0.119065,83986.0,83985.0,0.0312]
[1742032805924,0.119065,83986.0,83985.0,0.3012]
[1742032806616,0.181065,83986.0,83985.0,0.3012]
[1742032806816,0.1190693,83983.0,83982.0,0.01394909]
[1742032807015,0.1190693,83983.0,83982.0,0.2728]
[1742032807720,0.1810693,83983.0,83982.0,0.2728]
[1742032808730,0.1190707,83982.0,83981.0,0.21299405]
[1742032809124,0.1810707,83982.0,83981.0,0.21299405]
[1742032809317,0.1190792,83976.0,83975.0,0.1518806]
[1742032809517,0.1190792,83976.0,83975.0,0.1128]
[1742032809722,0.1190792,83976.0,83975.0,0.0328]
[1742032810230,0.1828792,83976.0,83975.0,0.1518806]
[1742032810732,0.1828792,83976.0,83975.0,0.4318806]
[1742032811036,0.1828792,83976.0,83975.0,0.16533085]
[1742032812431,0.1828792,83976.0,83975.0,0.39533085]
[1742032812931,0.1828792,83976.0,83975.0,0.42673085]
[1742032814230,0.1505792,83976.0,83975.0,0.42673085]
[1742032814424,0.1505792,83976.0,83975.0,0.45823085]
[1742032815419,0.0315,83976.0,83975.0,0.45823085]
[1742032815623,0.1505792,83976.0,83975.0,0.45823085]
[1742032815828,0.1807792,83976.0,83975.0,0.45823085]
[1742032823730,0.1190792,83976.0,83975.0,0.45823085]
[1742032824727,0.1826792,83976.0,83975.0,0.42673085]
[1742032836348,0.1826792,83976.0,83975.0,0.30765025]
[1742032836750,0.1826792,83976.0,83975.0,0.07765025]
[1742032840953,0.1826792,83976.0,83975.0,0.19673085]
[1742032841648,0.1826792,83976.0,83975.0,0.07765025]
[1742032842937,0.1516792,83976.0,83975.0,0.83765025]
[1742032843137,0.1516792,83976.0,83975.0,0.35765025]
[1742032844652,0.1516792,83976.0,83975.0,0.47673085]
[1742032845151,0.1818792,83976.0,83975.0,0.47673085]
[1742032860263,0.1516792,83976.0,83975.0,0.47673085]
[1742032861667,0.1516792,83976.0,83975.0,0.47673085]
[1742032861961,0.1516792,83976.0,83975.0,0.97673085]
[1742032862168,0.1190792,83976.0,83975.0,1.04627045]
[1742032862367,0.1190792,83976.0,83975.0,0.78627045]
[1742032862869,0.1190792,83976.0,83975.0,1.04627045]
[1742032863475,0.3608,83995.0,83975.0,0.86765025]
[1742032863779,0.0595332,83986.0,83985.0,0.1190636]
[1742032863966,0.0595332,83986.0,83985.0,0.3990636]
[1742032864166,0.0595332,83986.0,83985.0,0.6290636]
[1742032864367,0.0595332,83986.0,83985.0,0.9004636]
[1742032864668,0.0595332,83986.0,83985.0,0.92661108]
[1742032864871,0.0595332,83986.0,83985.0,0.48661108]
[1742032865881,0.0595332,83986.0,83985.0,0.94321196]
[1742032869073,0.0595332,83986.0,83985.0,0.94325305]
[1742032869881,0.0595332,83986.0,83985.0,0.35418945]
[1742032870075,0.1226332,83986.0,83985.0,0.47325585]
[1742032870577,0.0919332,83986.0,83985.0,0.47325447]
[1742032870783,0.0919332,83986.0,83985.0,0.4604664]
[1742032871082,0.0919332,83986.0,83985.0,0.47325466]
[1742032871586,0.0919332,83986.0,83985.0,0.47325597]
[1742032872076,0.0919332,83986.0,83985.0,0.4604664]
[1742032872980,0.0919332,83986.0,83985.0,0.4732581]
[1742032874774,0.0919332,83986.0,83985.0,0.9332581]
[1742032876185,0.0919332,83986.0,83985.0,0.9204664]
[1742032876372,0.0919332,83986.0,83985.0,0.93327559]
[1742032879978,0.1248332,83986.0,83985.0,0.93327559]
[1742032880183,0.1248332,83986.0,83985.0,1.29407559]
[1742032881279,0.1248332,83986.0,83985.0,1.30781676]
[1742032884493,0.1248332,83986.0,83985.0,1.29407559]
[1742032886393,0.1248332,83986.0,83985.0,1.07407559]
[1742032890393,0.1248332,83986.0,83985.0,1.08765335]
[1742032890995,0.1248332,83986.0,83985.0,1.07407559]
[1742032891393,0.1248332,83986.0,83985.0,1.29407559]
[1742032892596,0.1248332,83986.0,83985.0,1.17500919]
[1742032892804,0.1248332,83986.0,83985.0,0.53280919]
[1742032892805,0.4856332,83986.0,83985.0,0.53280919]
[1742032892990,0.4856332,83986.0,83985.0,0.29355519]
[1742032893192,0.7556332,83986.0,83985.0,0.01355519]
[1742032893692,0.7556332,83986.0,83978.0,0.0324]
[1742032893693,0.119075,83979.0,83978.0,0.0324]
[1742032894007,0.119075,83979.0,83978.0,0.2924]
[1742032894595,0.180575,83979.0,83978.0,0.2924]
[1742032896603,0.180575,83979.0,83978.0,0.4114764]
[1742032897490,0.180575,83979.0,83978.0,0.4437764]
[1742032899308,0.180575,83979.0,83978.0,0.8045764]
[1742032899904,0.180575,83979.0,83978.0,0.4437764]
[1742032901012,0.180575,83979.0,83978.0,0.3247]
[1742032901608,0.180575,83979.0,83978.0,0.2924]
[1742032904514,0.564855,83979.0,83978.0,0.2924]
[1742032905112,0.294855,83979.0,83978.0,0.2924]
[1742032905618,0.564855,83979.0,83978.0,0.2924]
[1742032906520,0.1190806,83975.0,83974.0,0.00017867]
[1742032906714,0.3990806,83975.0,83974.0,0.00017867]
[1742032907401,0.4622806,83975.0,83974.0,0.00017867]
[1742032908205,0.1822806,83975.0,83974.0,0.00017867]
[1742032908403,0.4122806,83975.0,83974.0,0.00017867]
[1742032908715,0.4322806,83975.0,83974.0,0.00017867]
[1742032912427,0.7930806,83975.0,83974.0,0.00017867]
[1742032912912,0.9430806,83975.0,83974.0,0.00017867]
[1742032914508,0.80215219,83975.0,83974.0,0.00017867]
[1742032915419,0.95215219,83975.0,83974.0,0.00017867]
[1742032917107,0.95215219,83975.0,83974.0,7e-08]
[1742032918110,0.91631219,83975.0,83974.0,7e-08]
[1742032918921,0.80215219,83975.0,83974.0,7e-08]
[1742032919130,0.91631219,83975.0,83974.0,7e-08]
[1742032921819,0.51945219,83975.0,83974.0,0.06280007]
[1742032922026,0.63361219,83975.0,83974.0,0.06280007]
[1742032922924,0.6245406,83975.0,83974.0,0.06280007]
[1742032924324,0.5940406,83975.0,83974.0,0.28280007]
[1742032924717,0.5940406,83975.0,83974.0,0.29558658]
[1742032924917,0.2332406,83975.0,83974.0,0.29558658]
[1742032925631,0.2332406,83975.0,83974.0,0.41466858]
[1742032926130,0.2332406,83975.0,83974.0,0.29558658]
[1742032928533,0.4732406,83975.0,83974.0,0.28280007]
[1742032928733,0.4732406,83975.0,83974.0,0.06280007]
[1742032928929,0.6257406,83975.0,83974.0,0.06280007]
[1742032929234,0.8875406,83975.0,83974.0,0.06280007]
[1742032930532,0.2967406,83975.0,83974.0,0.06280007]
[1742032931634,0.6575406,83975.0,83974.0,0.06280007]
[1742032932729,0.9175406,83975.0,83974.0,0.06280007]
[1742032932928,0.6575406,83975.0,83974.0,0.06280007]
[1742032933130,0.6257406,83975.0,83974.0,0.06280007]
[1742032934825,0.6561406,83975.0,83974.0,0.06280007]
[1742032935546,0.2953406,83975.0,83974.0,0.06280007]
[1742032935753,0.2649406,83975.0,83974.0,0.06280007]
[1742032937442,0.5249406,83975.0,83974.0,0.06280007]
[1742032937641,0.2649406,83975.0,83974.0,0.06280007]
[1742032940534,0.2967406,83975.0,83974.0,0.06280007]
[1742032940730,0.5567406,83975.0,83974.0,0.06280007]
[1742032941229,0.54939887,83975.0,83974.0,0.06280007]
[1742032941436,0.91019887,83975.0,83974.0,0.06280007]
[1742032942733,0.91019887,83975.0,83974.0,0.03040007]
[1742032942940,0.91027887,83975.0,83974.0,0.03040007]
[1742032944249,0.79603887,83975.0,83974.0,0.03040007]
[1742032944435,0.91023887,83975.0,83974.0,0.03040007]
[1742032944840,0.79603887,83975.0,83974.0,0.03040007]
[1742032945040,0.91023887,83975.0,83974.0,0.03040007]
[1742032946436,0.91019887,83975.0,83974.0,0.03040007]
[1742032946637,0.79603887,83975.0,83974.0,0.03040007]
[1742032946837,0.91019887,83975.0,83974.0,0.03040007]
[1742032948352,0.79603887,83975.0,83974.0,0.03040007]
[1742032948535,0.91019887,83975.0,83974.0,0.03040007]
[1742032948738,0.8975406,83975.0,83974.0,0.03040007]
[1742032948949,0.7833806,83975.0,83974.0,0.03040007]
[1742032949135,0.8975406,83975.0,83974.0,0.03040007]
[1742032949540,0.6575406,83975.0,83974.0,0.03040007]
[1742032950655,0.6257406,83975.0,83974.0,0.03040007]
[1742032951159,0.6257406,83975.0,83974.0,0.04324953]
[1742032951337,0.6573406,83975.0,83974.0,0.04324953]
[1742032951852,0.6257406,83975.0,83974.0,0.04324953]
[1742032952640,0.2649406,83975.0,83974.0,0.04324953]
[1742032953954,0.1190806,83975.0,83974.0,0.16233153]
[1742032954154,0.1190806,83975.0,83974.0,0.21233153]
[1742032954545,0.1190804,83976.0,83975.0,0.1786174]
[1742032954753,0.1190804,83976.0,83975.0,0.3216174]
[1742032955858,0.1190804,83976.0,83975.0,0.5816174]
[1742032956152,0.1190804,83976.0,83975.0,0.3216174]
[1742032956352,0.001,83976.0,83975.0,0.5616174]
[1742032956557,0.2383288,83983.0,83982.0,0.1190707]
[1742032956754,0.2383288,83983.0,83982.0,0.3890707]
[1742032957148,0.2383288,83983.0,83982.0,0.4199707]
[1742032957561,0.2383288,83983.0,83982.0,0.6599707]
[1742032958061,0.2393288,83983.0,83982.0,0.6599707]
[1742032959748,0.2393288,83983.0,83982.0,0.6925707]
[1742032962153,0.0607139,83983.0,83982.0,0.9425707]
[1742032966964,0.0607139,83983.0,83982.0,0.9726707]
[1742032971571,0.0597139,83983.0,83982.0,0.9726707]
[1742032972259,0.0597139,83983.0,83982.0,0.7226707]
[1742032972773,0.0597139,83983.0,83982.0,0.4517707]
[1742032972974,0.1555139,83983.0,83982.0,0.4517707]
[1742032973676,0.1555139,83983.0,83982.0,0.3327]
[1742032973972,0.1555139,83983.0,83982.0,0.3026]
[1742032976264,0.1555139,83983.0,83982.0,0.4216707]
[1742032980379,0.1555139,83983.0,83982.0,0.4545707]
[1742032983472,0.119052,83996.0,83982.0,0.9845707]
[1742032983665,0.119052,83996.0,83993.0,0.1190551]
[1742032983666,0.1494537,83994.0,83993.0,0.1190551]
[1742032983872,0.1494537,83994.0,83993.0,0.4517551]
[1742032984774,0.1494537,83994.0,83993.0,0.3024]
[1742032985090,0.1494537,83994.0,83993.0,0.4214551]
[1742032985473,0.1801537,83994.0,83993.0,0.4214551]
[1742032986285,0.1801537,83994.0,83993.0,0.3024]
[1742032986474,0.1801537,83994.0,83993.0,0.27]
[1742032989373,0.1190679,83984.0,83983.0,0.1190685]
[1742032989689,0.1190679,83984.0,83983.0,0.2990685]
[1742032990389,0.1839679,83984.0,83983.0,0.2990685]
[1742032994387,0.1190679,83984.0,83983.0,0.4990685]
[1742032995183,0.0595327,83986.0,83985.0,0.1190664]
[1742032995486,0.0595327,83986.0,83985.0,0.8090664]
[1742032995877,0.0595327,83986.0,83985.0,0.8395664]
[1742032996579,0.0595327,83986.0,83985.0,0.8705664]
[1742032997383,0.178595,83988.0,83987.0,0.1190636]
[1742032997587,0.178595,83988.0,83987.0,0.6190636]
[1742032998088,0.178595,83988.0,83987.0,0.6817636]
[1742032999886,0.178595,83988.0,83987.0,0.1817636]
[1742033000086,0.178595,83988.0,83987.0,0.6917636]
[1742033002988,0.1190593,83991.0,83990.0,0.1785876]
[1742033003190,0.1190593,83991.0,83990.0,0.4485876]
[1742033003374,0.1190593,83991.0,83990.0,0.4085876]
[1742033003781,0.1512593,83991.0,83990.0,0.4085876]
[1742033004196,0.1512593,83991.0,83990.0,0.4404876]
[1742033004479,0.1821593,83991.0,83990.0,0.4404876]
[1742033004689,0.1512593,83991.0,83990.0,0.4404876]
[1742033006084,0.1821593,83991.0,83990.0,0.4404876]
[1742033007195,0.1821593,83991.0,83990.0,0.2619]
[1742033007380,0.2137593,83991.0,83990.0,0.2619]
[1742033007691,0.2137593,83991.0,83990.0,0.293]
[1742033008679,0.2137593,83991.0,83990.0,0.4120594]
[1742033008880,0.2137593,83991.0,83990.0,0.293]
[1742033010691,0.2137593,83991.0,83990.0,0.4120594]
[1742033011086,0.2137593,83991.0,83990.0,0.293]
[1742033011483,0.2137593,83991.0,83990.0,0.2611]
[1742033012995,0.2137593,83991.0,83990.0,0.2929]
[1742033014694,0.2137593,83991.0,83990.0,0.4119594]
[1742033016198,0.2137593,83991.0,83990.0,0.2929]
[1742033016399,0.2137593,83991.0,83990.0,0.4119594]
[1742033017100,0.2137593,83991.0,83990.0,0.2929]
[1742033018793,0.2137593,83991.0,83990.0,0.4119594]
[1742033019803,0.2137593,83991.0,83990.0,0.2929]
[1742033021896,0.2137593,83991.0,83990.0,0.4119594]
[1742033024310,0.2137593,83991.0,83990.0,0.2929]
[1742033026190,0.8045593,83991.0,83990.0,0.2298214]
[1742033026592,0.8045593,83991.0,83982.0,0.0633]
[1742033026593,0.1190693,83983.0,83982.0,0.0633]
[1742033026800,0.1190693,83983.0,83982.0,0.0733]
[1742033027103,0.2148693,83983.0,83982.0,0.0733]
[1742033027602,0.0595367,83981.0,83974.0,0.2259001]
[1742033027804,0.1190792,83976.0,83975.0,0.0319]
[1742033028012,0.2333592,83976.0,83975.0,0.0319]
[1742033028895,0.2967592,83976.0,83975.0,0.0319]
[1742033029601,0.2967592,83976.0,83975.0,0.0619]
[1742033036808,0.9175592,83976.0,83975.0,0.0619]
[1742033037016,0.6575592,83976.0,83975.0,0.0619]
[1742033037414,0.8975592,83976.0,83975.0,0.0619]
[1742033037714,0.6575592,83976.0,83975.0,0.0619]
[1742033038213,0.9175592,83976.0,83975.0,0.0619]
[1742033038516,0.6575592,83976.0,83975.0,0.0619]
[1742033039109,0.8875592,83976.0,83975.0,0.0619]
[1742033040405,0.9375592,83976.0,83975.0,0.0619]
[1742033041009,0.9275592,83976.0,83975.0,0.0619]
[1742033042616,0.9275592,83976.0,83975.0,0.0319]
[1742033046220,0.9375592,83976.0,83975.0,0.0319]
[1742033046409,0.8232792,83976.0,83975.0,0.0319]
[1742033046610,0.8232792,83976.0,83975.0,0.0624]
[1742033046911,0.9374392,83976.0,83975.0,0.0624]
[1742033047916,0.9074392,83976.0,83975.0,0.0624]